bitfinex/quotes_ETHUSD_20250815
["timestamp","ask_amount","ask_price","bid_price","bid_amount"]
[1755243102487,6.35116281,4650.3,4648.6,0.877]
[1755243102788,2.15066258,4649.8,4648.7,0.452]
[1755243103090,5.490687,4649.7,4648.7,0.452]
[1755243103290,3.34,4649.7,4648.7,0.452]
[1755243103493,3.34,4649.8,4649.2,2.15090138]
[1755243103701,3.34,4649.9,4649.3,0.452]
[1755243103900,3.339,4649.9,4649.3,2.60281588]
[1755243104057,3.339,4649.9,4649.3,2.15081588]
[1755243104259,3.339,4649.9,4649.4,0.452]
[1755243104569,3.339,4649.9,4649.5,0.452]
[1755243105287,3.339,4649.9,4649.3,2.15085749]
[1755243105452,3.339,4649.9,4649.6,0.452]
[1755243106395,2.15041051,4650.3,4649.6,0.452]
[1755243106396,3.338,4650.0,4649.6,0.452]
[1755243106595,3.338,4650.0,4649.7,0.452]
[1755243106963,3.338,4650.0,4649.3,0.9246841]
[1755243107371,2.15058388,4649.9,4648.6,0.452]
[1755243107576,3.337,4649.8,4649.2,2.15086803]
[1755243107774,3.337,4650.0,4648.9,0.452]
[1755243108070,2.15062395,4649.9,4648.9,2.60300874]
[1755243108466,2.15062395,4649.9,4648.9,2.15100874]
[1755243108669,2.1508305,4649.4,4648.7,0.452]
[1755243108863,3.34,4649.3,4648.6,0.001]
[1755243109100,2.15095042,4649.2,4648.6,0.001]
[1755243109517,3.0,4649.2,4648.6,0.001]
[1755243109999,2.25833902,4648.7,4648.6,0.001]
[1755243110200,5.60033902,4648.7,4648.6,0.001]
[1755243110400,0.1072,4648.7,4648.6,0.001]
[1755243110962,3.342,4648.9,4648.6,0.001]
[1755243111196,3.4492,4648.9,4648.6,0.001]
[1755243111712,0.1072,4648.9,4648.6,0.001]
[1755243111867,0.1072,4649.3,4648.7,0.4435]
[1755243112072,0.1072,4649.8,4649.2,0.1072]
[1755243112374,0.1072,4649.8,4649.5,2.15076622]
[1755243112575,3.343,4650.1,4649.6,0.1072]
[1755243112971,2.25760927,4650.3,4649.7,0.4435]
[1755243113305,3.343,4650.2,4649.7,0.4435]
[1755243113511,0.1072,4650.3,4649.7,0.4435]
[1755243113684,2.15046944,4650.2,4649.6,0.1072]
[1755243113893,2.15040264,4650.3,4649.6,0.1072]
[1755243114473,2.15049685,4650.1,4649.6,0.1072]
[1755243114692,2.15054225,4650.0,4649.6,0.1072]
[1755243114889,3.343,4650.4,4649.6,0.1072]
[1755243115615,2.15067638,4649.7,4649.6,0.1072]
[1755243115913,3.35316281,4649.8,4649.0,0.1072]
[1755243116100,2.15095394,4649.1,4649.0,0.1072]
[1755243116303,2.15095394,4649.1,4648.6,0.001]
[1755243116304,2.1510474,4648.9,4648.6,0.001]
[1755243116619,0.57866455,4650.8,4648.6,0.001]
[1755243116620,2.15109275,4648.8,4648.6,0.001]
[1755243116780,5.49209275,4648.8,4648.6,0.001]
[1755243116981,2.15113902,4648.7,4648.6,0.001]
[1755243117205,3.06330183,4648.7,4648.6,0.001]
[1755243117403,3.05213902,4648.7,4648.6,0.001]
[1755243117678,5.49313902,4648.7,4648.6,0.001]
[1755243118506,6.39413902,4648.7,4648.6,0.001]
[1755243119418,5.95263902,4648.7,4648.6,0.001]
[1755243119582,5.49313902,4648.7,4648.6,0.001]
[1755243120174,2.15113902,4648.7,4648.6,0.001]
[1755243120376,5.49113902,4648.7,4648.6,0.001]
[1755243120581,5.49113902,4648.7,4648.5,1e-08]
[1755243120582,5.1511853,4648.6,4648.5,1e-08]
[1755243120821,2.15132414,4648.3,4648.2,0.001]
[1755243121024,8.51648695,4648.3,4648.2,0.001]
[1755243121230,8.51648695,4648.3,4645.7,0.4435]
[1755243121231,2.15216272,4646.5,4645.7,0.4435]
[1755243121377,3.357,4646.4,4645.7,2.59602637]
[1755243121577,3.357,4646.4,4645.7,0.4435]
[1755243122051,3.357,4646.4,4645.3,0.4435]
[1755243122186,2.1522922,4646.3,4645.3,0.4435]
[1755243122521,3.357,4646.4,4645.3,0.4435]
[1755243122728,2.15238911,4646.1,4645.3,0.4435]
[1755243122905,2.15238911,4646.1,4645.3,0.7456238]
[1755243123083,0.4595,4647.4,4645.4,0.02152667]
[1755243123424,0.086226,4648.3,4646.3,2.15222523]
[1755243123425,3.356,4647.3,4646.3,2.15222523]
[1755243123579,0.5747053,4648.3,4646.5,2.15214179]
[1755243123787,2.15141929,4648.1,4647.2,2.1518155]
[1755243123996,5.1514167,4648.1,4647.0,2.15288188]
[1755243124208,5.1514167,4648.1,4647.0,0.47584043]
[1755243124414,2.15155794,4647.8,4647.0,0.47584043]
[1755243124776,5.51561439,4647.7,4647.0,0.47584043]
[1755243125021,3.364,4647.7,4647.0,0.001]
[1755243125982,5.5156082,4647.7,4647.0,0.001]
[1755243126927,3.364,4647.7,4647.0,0.001]
[1755243127107,3.361,4647.7,4647.1,0.4435]
[1755243127426,3.361,4647.8,4647.1,2.59537784]
[1755243127621,3.361,4647.8,4647.0,0.001]
[1755243128398,0.901,4647.7,4647.0,0.001]
[1755243128719,2.15170063,4647.5,4647.0,0.001]
[1755243128904,2.15183379,4647.2,4647.0,0.001]
[1755243129228,2.15187966,4647.1,4647.0,0.001]
[1755243129399,3.06404247,4647.1,4647.0,0.001]
[1755243129822,0.4415,4647.7,4647.0,0.001]
[1755243130123,2.1517769,4647.4,4647.0,0.001]
[1755243130482,5.51264878,4647.6,4647.0,0.001]
[1755243130483,2.15187966,4647.1,4647.0,0.001]
[1755243130682,5.51287966,4647.1,4647.0,0.001]
[1755243131113,6.41387966,4647.1,4647.0,0.001]
[1755243131333,3.05287966,4647.1,4647.0,0.001]
[1755243131495,6.42504247,4647.1,4647.0,0.001]
[1755243131698,6.41387966,4647.1,4647.0,0.001]
[1755243131890,9.41387966,4647.1,4647.0,0.001]
[1755243132929,6.16007966,4647.1,4647.0,0.001]
[1755243133228,5.61907966,4647.1,4647.0,0.001]
[1755243133411,3.4672,4647.1,4647.0,0.001]
[1755243133789,0.4595,4648.2,4647.0,0.001]
[1755243133990,0.1072,4647.6,4647.0,0.001]
[1755243134225,3.361,4647.5,4647.0,0.27137579]
[1755243134410,0.1072,4647.9,4647.2,0.1072]
[1755243134593,5.51256707,4647.8,4647.2,0.1072]
[1755243135398,3.361,4647.8,4647.2,0.1072]
[1755243135921,2.15160762,4647.7,4647.2,0.1072]
[1755243136121,3.361,4647.8,4647.2,0.1072]
[1755243136320,2.15160186,4647.7,4647.2,0.1072]
[1755243136898,3.361,4647.8,4647.2,0.1072]
[1755243137332,5.51255777,4647.8,4647.2,0.1072]
[1755243138236,2.15165108,4647.6,4647.2,0.1072]
[1755243138399,3.359,4647.5,4647.2,0.1072]
[1755243139936,5.95223492,4647.5,4647.2,0.1072]
[1755243140107,6.41173492,4647.5,4647.2,0.1072]
[1755243140303,2.15178705,4647.3,4647.2,0.1072]
[1755243140503,0.1072,4647.3,4647.1,0.001]
[1755243141200,3.901,4647.9,4647.1,0.001]
[1755243141429,1.0082,4647.9,4647.2,0.1072]
[1755243141628,2.2605299,4648.3,4647.6,0.1072]
[1755243141828,3.354,4648.0,4647.6,0.1072]
[1755243142029,0.1092,4648.3,4647.6,0.1072]
[1755243142227,3.356,4648.3,4647.9,0.1072]
[1755243142599,5.50732932,4648.3,4647.9,0.1072]
[1755243143101,5.95822932,4648.3,4647.9,0.1072]
[1755243143353,2.15145,4648.1,4647.9,0.1072]
[1755243143535,2.15146299,4648.0,4647.1,0.001]
[1755243143828,2.15160639,4647.7,4647.3,0.1072]
[1755243144220,2.1516497,4647.6,4647.3,0.1072]
[1755243144526,2.1516497,4647.6,4647.1,0.001]
[1755243144527,2.15183336,4647.2,4647.1,0.001]
[1755243144933,3.03723336,4647.2,4647.1,0.001]
[1755243145108,2.15178205,4647.4,4647.1,0.001]
[1755243145308,3.354,4647.3,4647.1,0.001]
[1755243146518,3.4612,4647.5,4647.1,0.001]
[1755243146836,5.61290815,4647.5,4647.1,0.001]
[1755243147033,2.15178705,4647.3,4647.1,0.001]
[1755243147556,0.8854,4647.2,4647.1,0.001]
[1755243147763,6.39123336,4647.2,4647.1,0.001]
[1755243148061,6.49843336,4647.2,4647.1,0.001]
[1755243148216,9.49843336,4647.2,4647.1,0.001]
[1755243149869,5.15187966,4647.1,4647.0,0.001]
[1755243150156,9.39027966,4647.1,4647.0,0.001]
[1755243150629,9.39127966,4647.1,4647.0,0.001]
[1755243151833,6.03727966,4647.1,4647.0,0.001]
[1755243152051,9.39027966,4647.1,4647.0,0.001]
[1755243153731,5.60277966,4647.1,4647.0,0.001]
[1755243153935,9.39027966,4647.1,4647.0,0.001]
[1755243154866,2.15211122,4646.6,4646.5,0.001]
[1755243155065,2.15211122,4646.6,4646.0,1e-08]
[1755243155066,2.15234282,4646.1,4646.0,1e-08]
[1755243155263,5.15238915,4646.0,4645.8,0.001]
[1755243155568,15.04573529,4645.9,4645.8,0.001]
[1755243155733,15.91997248,4645.9,4645.8,0.001]
[1755243157340,15.91997248,4645.9,4645.8,1e-08]
[1755243157541,44.8362112,4645.9,4645.8,1e-08]
[1755243157964,45.3862112,4645.9,4645.8,1e-08]
[1755243158394,2.15294522,4644.8,4644.7,0.001]
[1755243158534,8.50394522,4644.8,4644.7,0.001]
[1755243158733,9.49734522,4644.8,4644.7,0.001]
[1755243162210,9.49534522,4644.8,4644.7,0.001]
[1755243163018,6.14634522,4644.8,4644.7,0.001]
[1755243163197,9.49434522,4644.8,4644.7,0.001]
[1755243163592,6.14634522,4644.8,4644.7,0.001]
[1755243163784,9.49434522,4644.8,4644.7,0.001]
[1755243164298,5.71184522,4644.8,4644.7,0.001]
[1755243164712,9.05884522,4644.8,4644.7,0.001]
[1755243164889,6.14634522,4644.8,4644.7,0.001]
[1755243165097,9.49334522,4644.8,4644.7,0.001]
[1755243165308,9.05884522,4644.8,4644.7,0.001]
[1755243165498,5.71184522,4644.8,4644.7,0.001]
[1755243166016,9.49234522,4644.8,4644.7,0.001]
[1755243166521,5.26094522,4644.8,4644.7,0.001]
[1755243166816,2.15249422,4645.8,4644.7,0.8578]
[1755243167116,3.349,4645.7,4644.8,0.73288801]
[1755243167316,2.15294522,4644.8,4644.7,0.001]
[1755243167516,8.50194522,4644.8,4644.7,0.001]
[1755243167706,9.38734522,4644.8,4644.7,0.001]
[1755243167908,8.50194522,4644.8,4644.7,0.001]
[1755243168110,8.50494522,4644.8,4644.7,0.001]
[1755243168309,8.50394522,4644.8,4644.7,0.001]
[1755243170426,9.38934522,4644.8,4644.7,0.001]
[1755243172914,0.4318,4645.7,4644.8,0.55]
[1755243173234,2.15178705,4647.3,4645.2,2.15272195]
[1755243173387,9.80029981,4647.2,4645.3,1.1377722]
[1755243173589,5.61997966,4647.1,4644.7,0.001]
[1755243173788,2.15235542,4646.1,4644.9,0.4425]
[1755243173995,3.369,4646.0,4644.9,0.4425]
[1755243174197,5.52143548,4645.9,4644.9,0.4425]
[1755243174409,3.0,4645.8,4644.9,0.4425]
[1755243174818,5.15249193,4645.8,4644.9,0.4425]
[1755243175030,3.0,4645.8,4644.9,0.4425]
[1755243175331,2.15263258,4645.5,4644.9,0.4425]
[1755243175530,3.369,4645.4,4644.9,0.4425]
[1755243175829,3.368,4645.3,4644.9,0.4425]
[1755243176034,3.368,4645.3,4645.0,0.4425]
[1755243176218,3.368,4645.3,4645.1,0.4425]
[1755243177330,3.368,4645.3,4645.0,0.108]
[1755243179032,3.368,4645.3,4645.0,0.5505]
[1755243179919,3.368,4645.3,4645.0,0.108]
[1755243180230,0.108,4645.7,4645.0,0.108]
[1755243180439,1.14750178,4648.1,4644.7,0.001]
[1755243180440,0.468,4648.1,4645.2,0.55]
[1755243180598,2.15163483,4647.7,4646.2,2.1522595]
[1755243180802,5.51846968,4648.0,4646.4,0.55]
[1755243180999,2.15156129,4647.8,4646.5,0.88902157]
[1755243181240,3.367,4647.7,4647.0,2.15192195]
[1755243181399,3.367,4647.6,4647.1,0.46401879]
[1755243181605,3.367,4647.5,4647.2,0.4425]
[1755243181806,3.367,4647.5,4646.7,0.55]
[1755243182022,3.367,4647.5,4646.2,0.4425]
[1755243182239,3.367,4647.5,4646.3,0.14175]
[1755243182440,3.0,4647.2,4646.3,0.14175]
[1755243182737,3.468,4647.4,4646.3,0.14175]
[1755243182937,3.468,4647.4,4646.0,2.15238552]
[1755243183139,2.151877,4647.2,4646.1,2.15233166]
[1755243183339,0.4681,4647.5,4646.1,2.15233166]
[1755243183340,3.367,4647.1,4646.4,2.15216095]
[1755243183663,5.172,4648.5,4646.5,0.4425]
[1755243183956,3.0,4647.9,4646.5,2.59465627]
[1755243184141,3.0,4647.9,4646.6,2.15210606]
[1755243184321,2.15168598,4647.6,4646.5,2.59464936]
[1755243184526,3.368,4647.5,4646.5,2.59464936]
[1755243184923,3.368,4647.5,4646.5,0.4425]
[1755243185123,5.51969506,4647.5,4646.6,2.15208087]
[1755243185327,5.51969506,4647.5,4646.5,2.59465597]
[1755243185553,2.15174309,4647.4,4646.5,1.1694656]
[1755243185725,2.15184941,4647.2,4646.5,0.7269656]
[1755243185927,2.15184941,4647.2,4646.4,4.25]
[1755243185928,2.15187731,4647.2,4646.4,4.25]
[1755243186160,3.8361,4647.5,4646.4,4.25]
[1755243186356,2.15181327,4647.3,4646.4,4.25]
[1755243186563,2.15174778,4647.4,4646.5,2.15215267]
[1755243186768,3.368,4647.5,4646.5,0.4425]
[1755243186952,2.15180708,4647.3,4646.5,3.23487036]
[1755243187160,3.364,4647.2,4646.8,2.15198257]
[1755243187463,3.364,4647.5,4646.9,0.8675]
[1755243187680,2.15169467,4647.5,4646.9,0.8675]
[1755243187837,2.15174173,4647.4,4646.9,0.8675]
[1755243188043,2.15174173,4647.4,4646.9,0.4425]
[1755243188244,3.364,4647.5,4647.0,0.8675]
[1755243188551,5.51573479,4647.5,4646.4,0.4425]
[1755243188951,3.364,4647.5,4646.4,0.4425]
[1755243189153,3.364,4647.5,4646.6,2.15211122]
[1755243189345,3.364,4647.5,4646.7,0.9925]
[1755243189545,3.364,4647.5,4646.8,2.15198027]
[1755243189841,3.364,4647.5,4646.7,3.50151688]
[1755243190046,0.9381,4648.0,4647.1,2.15187103]
[1755243190270,3.362,4647.9,4646.9,2.15192787]
[1755243190470,3.4692,4647.9,4647.3,0.1072]
[1755243190834,0.1072,4647.9,4647.3,0.1072]
[1755243191048,3.361,4647.8,4647.3,0.1072]
[1755243191644,0.1072,4647.9,4647.3,0.1072]
[1755243192048,3.36,4647.8,4647.3,0.1072]
[1755243192772,0.1072,4647.9,4647.3,0.1072]
[1755243192972,3.359,4647.8,4647.3,0.1072]
[1755243193677,4.2951,4647.8,4647.3,0.1072]
[1755243194179,3.9361,4647.7,4645.9,4.25]
[1755243194346,0.1072,4647.4,4646.7,0.108]
[1755243194542,4.2941,4647.3,4646.7,0.108]
[1755243195043,2.15184173,4647.2,4646.7,0.108]
[1755243195240,2.15188888,4647.1,4646.7,0.108]
[1755243195578,0.9361,4647.1,4646.7,0.108]
[1755243195873,3.358,4647.0,4646.7,0.108]
[1755243196371,0.4681,4646.9,4646.7,0.108]
[1755243196744,0.9361,4646.9,4646.7,0.108]
[1755243197351,2.15201859,4646.8,4646.7,0.108]
[1755243197550,2.1520649,4646.7,4646.0,0.108]
[1755243197755,3.356,4646.6,4646.0,0.108]
[1755243197956,5.50813744,4646.6,4646.0,0.108]
[1755243198463,3.356,4646.6,4646.0,0.108]
[1755243199078,2.62030266,4646.5,4646.0,0.108]
[1755243199272,0.576,4646.8,4646.0,0.108]
[1755243199273,0.108,4646.8,4646.0,0.108]
[1755243199449,5.50708444,4646.7,4646.0,0.108]
[1755243200284,3.355,4646.7,4646.0,0.108]
[1755243200655,3.355,4646.7,4646.1,0.02152342]
[1755243200890,2.25898754,4647.3,4646.6,0.108]
[1755243201061,3.358,4647.2,4646.6,0.108]
[1755243201256,3.358,4647.2,4646.7,2.15202215]
[1755243201768,3.358,4647.2,4646.7,0.4425]
[1755243202091,3.358,4647.2,4647.0,0.1072]
[1755243203701,2.15169474,4647.5,4647.0,0.1072]
[1755243203906,3.356,4647.4,4647.0,0.1072]
[1755243204193,3.8255,4647.4,4647.0,0.1072]
[1755243204398,0.4695,4647.4,4647.0,0.1072]
[1755243204603,0.1072,4647.6,4647.0,0.1072]
[1755243204604,0.9568,4647.3,4647.0,0.1072]
[1755243204784,2.15179362,4647.3,4647.0,0.1072]
[1755243204986,2.15193237,4647.0,4646.6,0.001]
[1755243205190,2.1520594,4646.8,4646.6,0.001]
[1755243205497,3.353,4646.7,4646.6,0.001]
[1755243205663,6.4618649,4646.7,4646.6,0.001]
[1755243205864,4.3098,4646.7,4646.6,0.001]
[1755243206890,3.353,4646.7,4646.6,0.001]
[1755243207597,0.1072,4647.0,4646.6,0.452]
[1755243207784,0.1072,4647.0,4646.7,1.0137]
[1755243207985,0.002,4647.3,4646.9,0.55]
[1755243208300,0.002,4647.3,4647.2,2.80903336]
[1755243208505,0.002,4647.3,4647.2,0.1072]
[1755243208995,0.002,4647.3,4647.0,0.1072]
[1755243208996,0.9588,4647.3,4647.0,0.1072]
[1755243209198,0.4873,4647.2,4647.0,0.1072]
[1755243209402,0.002,4647.3,4647.0,0.1072]
[1755243209998,3.10863849,4647.2,4647.0,0.1072]
[1755243210182,3.10867966,4647.1,4646.6,0.001]
[1755243210360,5.50487966,4647.1,4646.6,0.109]
[1755243210565,0.96796281,4647.0,4646.6,0.109]
[1755243210798,3.10872946,4647.0,4646.6,0.001]
[1755243210965,2.15197228,4646.9,4646.6,0.001]
[1755243211169,3.10877228,4646.9,4646.6,0.001]
[1755243211905,0.4695,4646.8,4646.6,0.001]
[1755243212070,3.354,4646.7,4646.6,0.001]
[1755243212299,4.3108,4646.7,4646.6,0.001]
[1755243213127,3.354,4646.7,4646.6,0.001]
[1755243214034,0.1072,4647.0,4646.6,0.001]
[1755243214215,3.35,4647.1,4646.6,0.33512482]
[1755243214739,3.35,4647.1,4646.6,0.109]
[1755243214950,3.96796281,4647.0,4646.6,0.109]
[1755243215151,6.10873313,4647.0,4646.6,0.001]
[1755243215323,2.1520578,4646.8,4646.6,0.001]
[1755243215523,3.35,4646.7,4646.6,0.001]
[1755243215824,4.3068,4646.7,4646.6,0.001]
[1755243216224,3.35,4646.7,4646.6,0.001]
[1755243217750,3.348,4647.0,4646.6,0.452]
[1755243217934,0.1072,4647.7,4646.7,0.57152064]
[1755243218134,2.25874302,4647.9,4647.0,2.15192303]
[1755243218341,3.348,4647.7,4647.2,0.1072]
[1755243220021,2.15165042,4647.6,4647.2,0.1072]
[1755243220224,3.348,4647.7,4647.2,0.1072]
[1755243220550,3.8175,4647.7,4647.2,0.1072]
[1755243220752,3.348,4647.7,4647.2,0.1072]
[1755243221453,3.348,4647.5,4647.2,0.1072]
[1755243221951,2.2587179,4647.9,4647.2,0.1072]
[1755243222151,3.346,4647.5,4647.2,0.1072]
[1755243224840,0.9588,4647.3,4646.8,4.25]
[1755243225038,0.002,4647.3,4646.9,0.1072]
[1755243225242,0.9568,4647.2,4646.9,0.1072]
[1755243225437,4.31096281,4647.1,4646.8,4.25]
[1755243225675,0.9568,4647.0,4646.8,4.25]
[1755243226090,0.4695,4646.9,4646.8,4.25]
[1755243226777,0.9568,4646.9,4646.8,4.25]
[1755243226948,0.9568,4646.9,4646.6,0.109]
[1755243229864,0.9568,4646.8,4646.6,0.109]
[1755243230188,3.34,4646.7,4646.6,0.001]
[1755243230387,4.2968,4646.7,4646.6,0.001]
[1755243230592,3.34,4646.7,4646.6,0.001]
[1755243230788,3.339,4646.7,4646.6,0.001]
[1755243231559,0.1072,4647.1,4647.0,2.15192597]
[1755243231763,0.1072,4647.1,4647.0,2.91711857]
[1755243232094,0.002,4647.3,4647.2,2.70183336]
[1755243232386,0.002,4647.3,4647.2,2.83055169]
[1755243232587,1e-08,4647.3,4647.2,6.66623336]
[1755243232754,0.002,4648.3,4647.7,2.70160186]
[1755243232952,1e-08,4647.8,4647.7,9.17331787]
[1755243233202,1e-08,4647.8,4647.7,10.00900186]
[1755243237294,1e-08,4647.8,4647.7,9.58400186]
[1755243237726,1e-08,4647.8,4647.7,0.1072]
[1755243237904,1e-08,4647.8,4647.7,2.25880186]
[1755243238104,1e-08,4647.8,4647.7,2.69984981]
[1755243238512,1e-08,4647.8,4647.7,3.24984981]
[1755243239790,1e-08,4647.8,4647.7,1.09824795]
[1755243240193,1e-08,4647.8,4647.7,4.3572]
[1755243240796,1e-08,4647.8,4647.7,6.50880186]
[1755243241195,1e-08,4647.8,4647.7,4.3572]
[1755243241638,0.93830001,4647.8,4647.7,4.3572]
[1755243241996,0.93830001,4647.8,4647.7,6.50880186]
[1755243242197,1e-08,4647.8,4647.7,6.50880186]
[1755243242399,1e-08,4647.8,4647.7,5.22324945]
[1755243242600,1e-08,4647.8,4647.7,4.3572]
[1755243242798,1e-08,4647.8,4647.7,6.50880186]
[1755243243333,1e-08,4647.8,4647.7,4.3572]
[1755243244235,1e-08,4647.8,4647.7,6.50880186]
[1755243245439,1e-08,4647.8,4647.7,4.3572]
[1755243246939,1e-08,4647.8,4647.7,0.1072]
[1755243247906,3.08985558,4647.8,4647.7,0.1072]
[1755243248707,2.15179569,4647.3,4646.8,0.001]
[1755243248946,0.93830001,4647.8,4646.8,0.001]
[1755243248947,0.01116281,4647.5,4647.2,0.1072]
[1755243249251,2.15178705,4647.3,4647.2,0.1072]
[1755243249550,3.09008705,4647.3,4647.2,0.1072]
[1755243249844,2.15197228,4646.9,4646.8,0.001]
[1755243250260,6.09027228,4646.9,4646.8,0.001]
[1755243251063,9.42427228,4646.9,4646.8,0.001]
[1755243257381,6.09027228,4646.9,4646.8,0.001]
[1755243257665,9.42327228,4646.9,4646.8,0.001]
[1755243259134,9.42127228,4646.9,4646.8,0.001]
[1755243262070,6.09027228,4646.9,4646.8,0.001]
[1755243262236,9.41927228,4646.9,4646.8,0.001]
[1755243262844,9.52647228,4646.9,4646.8,0.001]
[1755243264140,9.52547228,4646.9,4646.8,0.001]
[1755243264446,2.25917228,4646.9,4646.8,0.001]
[1755243264646,5.58717228,4646.9,4646.8,0.001]
[1755243264850,8.58717228,4646.9,4646.8,0.001]
[1755243265646,9.08647228,4646.9,4646.8,0.001]
[1755243267243,9.53097228,4646.9,4646.8,0.001]
[1755243268160,8.58717228,4646.9,4646.8,0.001]
[1755243268854,5.25917228,4646.9,4646.8,0.001]
[1755243269054,8.58517228,4646.9,4646.8,0.001]
[1755243269982,9.52897228,4646.9,4646.8,0.001]
[1755243270785,8.58317228,4646.9,4646.8,0.001]
[1755243271084,8.58417228,4646.9,4646.8,0.001]
[1755243271286,9.52797228,4646.9,4646.8,0.001]
[1755243271588,8.58417228,4646.9,4646.8,0.001]
[1755243271956,3.327,4647.0,4646.8,0.4379]
[1755243272156,3.327,4646.9,4646.8,0.109]
[1755243272356,3.33,4646.9,4646.8,0.109]
[1755243272564,3.33,4646.9,4646.8,0.55042101]
[1755243272895,3.33,4646.9,4646.1,0.55]
[1755243273194,3.33,4646.9,4646.8,0.108]
[1755243273395,0.1072,4647.5,4646.8,0.5449]
[1755243273597,3.329,4647.4,4646.8,0.5449]
[1755243273783,3.329,4647.4,4646.8,0.108]
[1755243274177,2.15182361,4647.3,4646.8,0.108]
[1755243274382,2.15183538,4647.2,4646.8,0.108]
[1755243274566,5.47991504,4647.1,4646.8,0.108]
[1755243274761,5.47991168,4647.1,4646.8,0.108]
[1755243274968,2.15193337,4647.0,4646.8,0.108]
[1755243275673,2.15193337,4647.0,4646.0,2.15236887]
[1755243275674,3.328,4646.9,4645.9,0.4369]
[1755243275896,2.15216974,4646.5,4646.0,0.25893649]
[1755243276167,0.1072,4647.1,4646.3,0.108]
[1755243276168,3.327,4646.4,4646.3,0.108]
[1755243276909,2.15238915,4646.0,4645.9,0.108]
[1755243277073,3.327,4646.0,4645.7,0.108]
[1755243277273,3.327,4646.0,4645.7,0.5449]
[1755243277472,3.327,4646.0,4645.8,0.4369]
[1755243277697,3.327,4646.0,4645.7,0.108]
[1755243278004,3.327,4646.0,4645.8,0.4369]
[1755243278777,3.327,4646.0,4645.7,0.108]
[1755243280295,2.15248034,4645.9,4645.7,0.108]
[1755243280894,0.6073,4646.5,4645.7,0.108]
[1755243281093,2.15229055,4646.3,4645.7,0.108]
[1755243281500,5.47721654,4646.4,4645.7,0.108]
[1755243281711,2.15221654,4646.4,4645.7,0.108]
[1755243281877,2.15233064,4646.2,4645.7,0.108]
[1755243282079,3.325,4646.3,4645.7,0.108]
[1755243282278,3.108,4646.5,4645.7,0.108]
[1755243282476,0.6073,4646.2,4645.7,0.108]
[1755243282697,2.15242145,4646.0,4645.7,0.108]
[1755243282907,5.47535476,4646.1,4645.7,0.108]
[1755243283084,2.15235476,4646.1,4645.7,0.108]
[1755243283286,2.15230708,4646.2,4645.7,0.5449]
[1755243283617,3.323,4646.1,4645.8,0.88342481]
[1755243284129,3.323,4646.1,4645.8,0.4369]
[1755243284489,3.323,4646.1,4645.7,0.108]
[1755243284895,2.15243824,4645.9,4645.7,0.108]
[1755243285617,3.7675,4646.1,4645.7,0.108]
[1755243285618,5.91988625,4646.1,4645.7,0.108]
[1755243285919,0.9438,4645.9,4645.7,0.108]
[1755243286242,5.47448181,4645.8,4645.7,0.108]
[1755243286517,2.15271349,4645.3,4645.2,0.001]
[1755243286718,5.47471349,4645.3,4645.2,0.001]
[1755243287097,6.41851349,4645.3,4645.2,0.001]
[1755243287293,3.322,4645.3,4645.2,0.001]
[1755243289855,5.47471349,4645.3,4645.2,0.001]
[1755243290348,3.322,4645.3,4645.2,0.001]
[1755243290846,5.47471349,4645.3,4645.2,0.001]
[1755243291015,6.41851349,4645.3,4645.2,0.001]
[1755243291425,5.47471349,4645.3,4645.2,0.001]
[1755243293051,3.322,4645.3,4645.2,0.001]
[1755243293856,3.319,4645.3,4645.2,0.001]
[1755243294343,4.2161,4645.3,4645.2,0.001]
[1755243295022,3.7701,4645.3,4645.2,0.001]
[1755243295222,3.319,4645.3,4645.2,0.001]
[1755243297456,6.36881349,4645.3,4645.2,0.001]
[1755243297761,6.47681349,4645.3,4645.2,0.001]
[1755243300455,9.47681349,4645.3,4645.2,0.001]
[1755243301127,8.57971349,4645.3,4645.2,0.001]
[1755243301551,5.26071349,4645.3,4645.2,0.001]
[1755243301754,8.57971349,4645.3,4645.2,0.001]
[1755243301935,0.108,4645.3,4645.2,0.001]
[1755243302148,3.319,4645.3,4645.2,0.001]
[1755243303947,0.108,4645.8,4645.2,0.001]
[1755243304151,3.319,4645.8,4645.7,0.108]
[1755243304349,3.319,4645.8,4645.7,2.94978136]
[1755243304548,0.108,4646.6,4645.8,2.15247642]
[1755243304763,3.319,4646.5,4645.8,2.15247642]
[1755243304994,0.002,4646.3,4645.5,2.15257562]
[1755243305147,3.319,4646.2,4645.5,2.79293318]
[1755243305655,3.319,4646.2,4646.0,0.108]
[1755243305855,5.4712967,4646.2,4646.0,0.108]
[1755243306089,3.319,4646.2,4646.0,0.108]
[1755243309980,5.47130239,4646.2,4646.0,0.108]
[1755243310486,6.36840239,4646.2,4646.0,0.108]
[1755243310683,5.47130239,4646.2,4646.0,0.108]
[1755243310984,0.8971,4646.1,4646.0,0.108]
[1755243311297,2.60344282,4646.1,4646.0,0.108]
[1755243311493,2.15234282,4646.1,4646.0,0.108]
[1755243311800,5.4713085,4646.2,4646.0,0.108]
[1755243312003,2.15234282,4646.1,4646.0,0.108]
[1755243312296,3.04944282,4646.1,4645.5,0.108]
[1755243312498,3.319,4646.0,4645.5,0.108]
[1755243312725,2.15246865,4645.9,4645.5,0.108]